Workbook

Sheet СБР
A1: АНАЛИЗ ИСПОЛНЕНИЯ СВОДНОЙ БЮДЖЕТНОЙ РОСПИСИ БЮДЖЕТА ГОРОДСКОГО ОКРУГА "ГОРОД ФОКИНО" (РАСХОДЫ) на 01.05.2013г.
N2: руб. | P2: руб.
A3: наименование | B3: Вед. | C3: Разд. | D3: Ц.ст. | E3: Расх. | F3: Эк.класс. | G3: План на 2013 год | H3: Факт за 2012 год | I3: % исполнения | J3: План на 2013 год | K3: Факт за 2012 год | L3: % исполнения | M3: План на 2012 год | N3: Факт за 2012 год | O3: % исполнения | P3: Факт на 01.05.2013г. | Q3: % исполнения
A4: Совет народных депутатов города Фокино | B4: 001 | C4: 0000 | D4: 0000000 | E4: 000 | F4: 000 | J4: =J5 -> 570000 | K4: 570000 | L4: 0 | M4: 570000 | N4: 0 | O4: 570000 | P4: =P5 -> 184249.11 | Q4: =P4/J4*100 -> 32.32440526
A5: ОБЩЕГОСУДАРСТВЕННЫЕ ВОПРОСЫ | B5: 001 | C5: 0100 | D5: 0000000 | E5: 000 | F5: 000 | J5: =J6+J26 -> 570000 | K5: 570000 | L5: 0 | M5: 570000 | N5: 0 | O5: 570000 | P5: =P6+P26 -> 184249.11 | Q5: =P5/J5*100 -> 32.32440526
A6: Функционирование законодательных (представительных) органов государственной власти и представительных органов муниципальных образований | B6: 001 | C6: 0103 | D6: 0000000 | E6: 000 | F6: 000 | J6: =J7 -> 563000 | K6: 563000 | L6: 0 | M6: 563000 | N6: 0 | O6: 563000 | P6: =P7 -> 184249.11 | Q6: 32.72630728
A7: Центральный аппарат | B7: 001 | C7: 0103 | D7: 0020400 | E7: 000 | F7: 000 | J7: =J8+J13+J20+J23 -> 563000 | K7: 563000 | L7: 0 | M7: 563000 | N7: 0 | O7: 563000 | P7: =P8+P13+P20+P23 -> 184249.11 | Q7: 32.72630728
A8: Расходы на выплаты персоналу государственных (муниципальных) органов | B8: 001 | C8: 0103 | D8: 0020400 | E8: 120 | F8: 000 | J8: =J9+J11 -> 352000 | K8: 352000 | L8: 0 | M8: 352000 | N8: 0 | O8: 352000 | P8: =P9+P11 -> 127691.11 | Q8: 36.27588352
A9: Заработная плата | B9: 001 | C9: 0103 | D9: 0020400 | E9: 120 | F9: 211 | J9: 270353 | K9: 270353 | L9: 0 | M9: 270353 | N9: 0 | O9: 270353 | P9: 104338.51 | Q9: 38.59343525
B10: 001 | C10: 0103 | D10: 0020400 | E10: 120 | F10: 211 | J10: 270353 | K10: 270353 | L10: 0 | M10: 270353 | N10: 0 | O10: 270353 | Q10: 0
A11: Начисления на выплаты по оплате труда | B11: 001 | C11: 0103 | D11: 0020400 | E11: 120 | F11: 213 | J11: 81647 | K11: 81647 | L11: 0 | M11: 81647 | N11: 0 | O11: 81647 | P11: 23352.6 | Q11: 28.60190821
B12: 001 | C12: 0103 | D12: 0020400 | E12: 120 | F12: 213 | J12: 81647 | K12: 81647 | L12: 0 | M12: 81647 | N12: 0 | O12: 81647 | P12: 81647 | Q12: 100
A13: Иные закупки товаров, работ и услуг для государственных(муниципальных) нужд | B13: 001 | C13: 0103 | D13: 0020400 | E13: 240 | F13: 000 | J13: =J14+J16+J18 -> 209000 | K13: 209000 | L13: 0 | M13: 209000 | N13: 0 | O13: 209000 | P13: =P14+P16+P18 -> 56458 | Q13: 27.01339713
A14: Услуги связи | B14: 001 | C14: 0103 | D14: 0020400 | E14: 240 | F14: 221 | J14: 12000 | K14: 12000 | L14: 0 | M14: 12000 | N14: 0 | O14: 12000 | P14: 4000 | Q14: 33.33333333
B15: 001 | C15: 0103 | D15: 0020400 | E15: 240 | F15: 221 | J15: 12000 | K15: 12000 | L15: 0 | M15: 12000 | N15: 0 | O15: 12000 | Q15: 0
A16: Прочие работы, услуги | B16: 001 | C16: 0103 | D16: 0020400 | E16: 240 | F16: 226 | J16: 177000 | K16: 177000 | L16: 0 | M16: 177000 | N16: 0 | O16: 177000 | P16: 48458 | Q16: 27.37740113
B17: 001 | C17: 0103 | D17: 0020400 | E17: 240 | F17: 226 | J17: 177000 | K17: 177000 | L17: 0 | M17: 177000 | N17: 0 | O17: 177000 | Q17: 0
A18: Увеличение стоимости материальных запасов | B18: 001 | C18: 0103 | D18: 0020400 | E18: 240 | F18: 340 | J18: 20000 | K18: 20000 | L18: 0 | M18: 20000 | N18: 0 | O18: 20000 | P18: 4000 | Q18: 20
B19: 001 | C19: 0103 | D19: 0020400 | E19: 240 | F19: 340 | J19: 20000 | K19: 20000 | L19: 0 | M19: 20000 | N19: 0 | O19: 20000 | P19: 20000 | Q19: 100
A20: Уплата налога на имущество организаций и земельного налога | B20: 001 | C20: 0103 | D20: 0020400 | E20: 851 | F20: 000 | J20: =J21 -> 1000 | K20: 1000 | L20: 0 | M20: 1000 | N20: 0 | O20: 1000 | P20: =P21 -> 0 | Q20: 0
A21: Прочие расходы | B21: 001 | C21: 0103 | D21: 0020400 | E21: 851 | F21: 290 | J21: 1000 | K21: 1000 | L21: 0 | M21: 1000 | N21: 0 | O21: 1000 | P21: 0 | Q21: 0
B22: 001 | C22: 0103 | D22: 0020400 | E22: 851 | F22: 290 | J22: 1000 | K22: 1000 | L22: 0 | M22: 1000 | N22: 0 | O22: 1000 | P22: 1000 | Q22: 100
A23: Уплата прочих налогов, сборов и иных платежей | B23: 001 | C23: 0103 | D23: 0020400 | E23: 852 | F23: 000 | J23: =J24 -> 1000 | K23: 1000 | L23: 0 | M23: 1000 | N23: 0 | O23: 1000 | P23: =P24 -> 100 | Q23: 10
A24: Прочие расходы | B24: 001 | C24: 0103 | D24: 0020400 | E24: 852 | F24: 290 | J24: 1000 | K24: 1000 | L24: 0 | M24: 1000 | N24: 0 | O24: 1000 | P24: 100 | Q24: 10
B25: 001 | C25: 0103 | D25: 0020400 | E25: 852 | F25: 290 | J25: 1000 | K25: 1000 | L25: 0 | M25: 1000 | N25: 0 | O25: 1000 | P25: 1000 | Q25: 100
A26: Другие общегосударственные вопросы | B26: 001 | C26: 0113 | D26: 0000000 | E26: 000 | F26: 000 | J26: =J27 -> 7000 | K26: 7000 | L26: 0 | M26: 7000 | N26: 0 | O26: 7000 | P26: =P27 -> 0 | Q26: 0
A27: Долгосрочнаяя целевая программа "Развитие информационного обеспечения " | B27: 001 | C27: 0113 | D27: 7952200 | E27: 000 | F27: 000 | J27: =J28 -> 7000 | K27: 7000 | L27: 0 | M27: 7000 | N27: 0 | O27: 7000 | P27: =P28 -> 0 | Q27: 0
A28: Иные закупки товаров, работ и услуг для государственных(муниципальных) нужд | B28: 001 | C28: 0113 | D28: 7952200 | E28: 240 | F28: 000 | J28: =J29+J31+J33 -> 7000 | K28: 7000 | L28: 0 | M28: 7000 | N28: 0 | O28: 7000 | P28: =P29+P31+P33 -> 0 | Q28: 0
A29: Работы, услуги по содержанию имущества | B29: 001 | C29: 0113 | D29: 7952200 | E29: 240 | F29: 225 | J29: 3000 | K29: 3000 | L29: 0 | M29: 3000 | N29: 0 | O29: 3000 | P29: 0 | Q29: 0
B30: 001 | C30: 0113 | D30: 7952200 | E30: 240 | F30: 225 | J30: 3000 | K30: 3000 | L30: 0 | M30: 3000 | N30: 0 | O30: 3000 | Q30: 0
A31: Прочие работы, услуги | B31: 001 | C31: 0113 | D31: 7952200 | E31: 240 | F31: 226 | J31: 2000 | K31: 2000 | L31: 0 | M31: 2000 | N31: 0 | O31: 2000 | P31: 0 | Q31: 0
B32: 001 | C32: 0113 | D32: 7952200 | E32: 240 | F32: 226 | J32: 2000 | K32: 2000 | L32: 0 | M32: 2000 | N32: 0 | O32: 2000 | Q32: 0
A33: Увеличение стоимости основных средств | B33: 001 | C33: 0113 | D33: 7952200 | E33: 240 | F33: 310 | J33: 2000 | K33: 2000 | L33: 0 | M33: 2000 | N33: 0 | O33: 2000 | P33: 0 | Q33: 0
B34: 001 | C34: 0113 | D34: 7952200 | E34: 240 | F34: 310 | J34: 2000 | K34: 2000 | L34: 0 | M34: 2000 | N34: 0 | O34: 2000 | P34: 2000 | Q34: 100
A35: Администрация города Фокино | B35: 002 | C35: 0000 | D35: 0000000 | E35: 000 | F35: 000 | J35: =J36+J109+J115+J132+J178+J214+J253+J263+J325+J331 -> 140804796.5 | K35: 136468607.6 | L35: 0 | M35: 136468607.6 | N35: 0 | O35: 136468607.6 | P35: =P36+P109+P115+P132+P178+P214+P253+P263+P325+P331 -> 53423822.48 | Q35: 37.94176321
A36: ОБЩЕГОСУДАРСТВЕННЫЕ ВОПРОСЫ | B36: 002 | C36: 0100 | D36: 0000000 | E36: 000 | F36: 000 | J36: =J37+J73+J78 -> 9162057 | K36: 9157057 | L36: 0 | M36: 9157057 | N36: 0 | O36: 9157057 | P36: =P37+P73+P78 -> 3406206.13 | Q36: 37.17730778
A37: Функционирование Правительства Российской Федерации, высших исполнительных органов государственной власти субъектов Российской Федерации, местных администраций | B37: 002 | C37: 0104 | D37: 0000000 | E37: 000 | F37: 000 | J37: =J38+J67 -> 7763200 | K37: 7763200 | L37: 0 | M37: 7763200 | N37: 0 | O37: 7763200 | P37: =P38+P67 -> 3244982.02 | Q37: 41.79954168
A38: Центральный аппарат | B38: 002 | C38: 0104 | D38: 0020400 | E38: 000 | F38: 000 | J38: =J39+J46+J61+J64 -> 7037200 | K38: 7037200 | L38: 0 | M38: 7037200 | N38: 0 | O38: 7037200 | P38: =P39+P46+P61+P64 -> 2934214.94 | Q38: 41.69577303
A39: Расходы на выплаты персоналу государственных (муниципальных) органов | B39: 002 | C39: 0104 | D39: 0020400 | E39: 120 | F39: 000 | J39: =J40+J42+J44 -> 5900000 | K39: 5900000 | L39: 0 | M39: 5900000 | N39: 0 | O39: 5900000 | P39: =P40+P42+P44 -> 2240351.6 | Q39: 37.97206102
A40: Заработная плата | B40: 002 | C40: 0104 | D40: 0020400 | E40: 120 | F40: 211 | J40: 4528802 | K40: 4528802 | L40: 0 | M40: 4528802 | N40: 0 | O40: 4528802 | P40: 1731629.64 | Q40: 38.23593171
B41: 002 | C41: 0104 | D41: 0020400 | E41: 120 | F41: 211 | J41: 4528802 | K41: 4528802 | L41: 0 | M41: 4528802 | N41: 0 | O41: 4528802 | Q41: 0
A42: Прочие выплаты | B42: 002 | C42: 0104 | D42: 0020400 | E42: 120 | F42: 212 | J42: 3500 | K42: 3500 | L42: 0 | M42: 3500 | N42: 0 | O42: 3500 | P42: 896.77 | Q42: 25.622
B43: 002 | C43: 0104 | D43: 0020400 | E43: 120 | F43: 212 | J43: 3500 | K43: 3500 | L43: 0 | M43: 3500 | N43: 0 | O43: 3500 | Q43: 0
A44: Начисления на выплаты по оплате труда | B44: 002 | C44: 0104 | D44: 0020400 | E44: 120 | F44: 213 | J44: 1367698 | K44: 1367698 | L44: 0 | M44: 1367698 | N44: 0 | O44: 1367698 | P44: 507825.19 | Q44: 37.12992123
B45: 002 | C45: 0104 | D45: 0020400 | E45: 120 | F45: 213 | J45: 1367698 | K45: 1367698 | L45: 0 | M45: 1367698 | N45: 0 | O45: 1367698 | P45: 1367698 | Q45: 100
A46: Иные закупки товаров, работ и услуг для государственных(муниципальных) нужд | B46: 002 | C46: 0104 | D46: 0020400 | E46: 240 | F46: 000 | J46: =J47+J49+J51+J53+J55+J57+J59 -> 1032200 | K46: 1032200 | L46: 0 | M46: 1032200 | N46: 0 | O46: 1032200 | P46: =P47+P49+P51+P53+P55+P57+P59 -> 631907.86 | Q46: 61.21951754
A47: Услуги связи | B47: 002 | C47: 0104 | D47: 0020400 | E47: 240 | F47: 221 | J47: 180000 | K47: 180000 | L47: 0 | M47: 180000 | N47: 0 | O47: 180000 | P47: 67688.78 | Q47: 37.60487778
B48: 002 | C48: 0104 | D48: 0020400 | E48: 240 | F48: 221 | J48: 180000 | K48: 180000 | L48: 0 | M48: 180000 | N48: 0 | O48: 180000 | Q48: 0
A49: Коммунальные услуги | B49: 002 | C49: 0104 | D49: 0020400 | E49: 240 | F49: 223 | J49: 500000 | K49: 500000 | L49: 0 | M49: 500000 | N49: 0 | O49: 500000 | P49: 478388.92 | Q49: 95.677784
B50: 002 | C50: 0104 | D50: 0020400 | E50: 240 | F50: 223 | J50: 500000 | K50: 500000 | L50: 0 | M50: 500000 | N50: 0 | O50: 500000 | Q50: 0
A51: Работы, услуги по содержанию имущества | B51: 002 | C51: 0104 | D51: 0020400 | E51: 240 | F51: 225 | J51: 47000 | K51: 47000 | L51: 0 | M51: 47000 | N51: 0 | O51: 47000 | P51: 1000 | Q51: 2.127659574
B52: 002 | C52: 0104 | D52: 0020400 | E52: 240 | F52: 225 | J52: 47000 | K52: 47000 | L52: 0 | M52: 47000 | N52: 0 | O52: 47000 | Q52: 0
A53: Прочие работы, услуги | B53: 002 | C53: 0104 | D53: 0020400 | E53: 240 | F53: 226 | J53: 70000 | K53: 70000 | L53: 0 | M53: 70000 | N53: 0 | O53: 70000 | P53: 5963.82 | Q53: 8.519742857
B54: 002 | C54: 0104 | D54: 0020400 | E54: 240 | F54: 226 | J54: 70000 | K54: 70000 | L54: 0 | M54: 70000 | N54: 0 | O54: 70000 | Q54: 0
A55: Прочие расходы | B55: 002 | C55: 0104 | D55: 0020400 | E55: 240 | F55: 290 | J55: 10000 | K55: 10000 | L55: 0 | M55: 10000 | N55: 0 | O55: 10000 | P55: 0 | Q55: 0
B56: 002 | C56: 0104 | D56: 0020400 | E56: 240 | F56: 290 | J56: 10000 | K56: 10000 | L56: 0 | M56: 10000 | N56: 0 | O56: 10000 | Q56: 0
A57: Увеличение стоимости основных средств | B57: 002 | C57: 0104 | D57: 0020400 | E57: 240 | F57: 310 | J57: 10000 | K57: 10000 | L57: 0 | M57: 10000 | N57: 0 | O57: 10000 | P57: 845 | Q57: 8.45
B58: 002 | C58: 0104 | D58: 0020400 | E58: 240 | F58: 310 | J58: 10000 | K58: 10000 | L58: 0 | M58: 10000 | N58: 0 | O58: 10000 | Q58: 0
A59: Увеличение стоимости материальных запасов | B59: 002 | C59: 0104 | D59: 0020400 | E59: 240 | F59: 340 | J59: 215200 | K59: 215200 | L59: 0 | M59: 215200 | N59: 0 | O59: 215200 | P59: 78021.34 | Q59: 36.25526952
B60: 002 | C60: 0104 | D60: 0020400 | E60: 240 | F60: 340 | J60: 215200 | K60: 215200 | L60: 0 | M60: 215200 | N60: 0 | O60: 215200 | P60: 215200 | Q60: 100
A61: Уплата налога на имущество организаций и земельного налога | B61: 002 | C61: 0104 | D61: 0020400 | E61: 851 | F61: 000 | J61: =J62 -> 70000 | K61: 70000 | L61: 0 | M61: 70000 | N61: 0 | O61: 70000 | P61: =P62 -> 42951 | Q61: 61.35857143
A62: Прочие расходы | B62: 002 | C62: 0104 | D62: 0020400 | E62: 851 | F62: 290 | J62: 70000 | K62: 70000 | L62: 0 | M62: 70000 | N62: 0 | O62: 70000 | P62: 42951 | Q62: 61.35857143
B63: 002 | C63: 0104 | D63: 0020400 | E63: 851 | F63: 290 | J63: 70000 | K63: 70000 | L63: 0 | M63: 70000 | N63: 0 | O63: 70000 | P63: 70000 | Q63: 100
A64: Уплата прочих налогов, сборов и иных платежей | B64: 002 | C64: 0104 | D64: 0020400 | E64: 852 | F64: 000 | J64: =J65 -> 35000 | K64: 35000 | L64: 0 | M64: 35000 | N64: 0 | O64: 35000 | P64: =P65 -> 19004.48 | Q64: 54.29851429
A65: Прочие расходы | B65: 002 | C65: 0104 | D65: 0020400 | E65: 852 | F65: 290 | J65: 35000 | K65: 35000 | L65: 0 | M65: 35000 | N65: 0 | O65: 35000 | P65: 19004.48 | Q65: 54.29851429
B66: 002 | C66: 0104 | D66: 0020400 | E66: 852 | F66: 290 | J66: 35000 | K66: 35000 | L66: 0 | M66: 35000 | N66: 0 | O66: 35000 | P66: 35000 | Q66: 100
A67: Глава местной администрации (исполнительно-распорядительного органа муниципального образования) | B67: 002 | C67: 0104 | D67: 0020800 | E67: 000 | F67: 000 | J67: =J68 -> 726000 | K67: 726000 | L67: 0 | M67: 726000 | N67: 0 | O67: 726000 | P67: =P68 -> 310767.08 | Q67: 42.80538292
A68: Расходы на выплаты персоналу государственных (муниципальных) органов | B68: 002 | C68: 0104 | D68: 0020800 | E68: 120 | F68: 000 | J68: =J69+J71 -> 726000 | K68: 726000 | L68: 0 | M68: 726000 | N68: 0 | O68: 726000 | P68: =P69+P71 -> 310767.08 | Q68: 42.80538292
A69: Заработная плата | B69: 002 | C69: 0104 | D69: 0020800 | E69: 120 | F69: 211 | J69: 506748 | K69: 506748 | L69: 0 | M69: 506748 | N69: 0 | O69: 506748 | P69: 253551.33 | Q69: =P69/J69*100 -> 50.03499372
B70: 002 | C70: 0104 | D70: 0020800 | E70: 120 | F70: 211 | J70: 506748 | K70: 506748 | L70: 0 | M70: 506748 | N70: 0 | O70: 506748 | Q70: 0
A71: Начисления на выплаты по оплате труда | B71: 002 | C71: 0104 | D71: 0020800 | E71: 120 | F71: 213 | J71: 219252 | K71: 219252 | L71: 0 | M71: 219252 | N71: 0 | O71: 219252 | P71: 57215.75 | Q71: 26.0958851
B72: 002 | C72: 0104 | D72: 0020800 | E72: 120 | F72: 213 | J72: 219252 | K72: 219252 | L72: 0 | M72: 219252 | N72: 0 | O72: 219252 | P72: 219252 | Q72: 100
A73: Резервные фонды | B73: 002 | C73: 0111 | D73: 0000000 | E73: 000 | F73: 000 | J73: =J74 -> 500000 | K73: 500000 | L73: 0 | M73: 500000 | N73: 0 | O73: 500000 | P73: =P74 -> 0 | Q73: 0
A74: Резервные фонды местных администраций | B74: 002 | C74: 0111 | D74: 0700500 | E74: 000 | F74: 000 | J74: =J75 -> 500000 | K74: 500000 | L74: 0 | M74: 500000 | N74: 0 | O74: 500000 | P74: =P75 -> 0 | Q74: 0
A75: Резервные средства | B75: 002 | C75: 0111 | D75: 0700500 | E75: 870 | F75: 000 | J75: =J76 -> 500000 | K75: 500000 | L75: 0 | M75: 500000 | N75: 0 | O75: 500000 | P75: =P76 -> 0 | Q75: 0
A76: Прочие расходы | B76: 002 | C76: 0111 | D76: 0700500 | E76: 870 | F76: 290 | J76: 500000 | K76: 500000 | L76: 0 | M76: 500000 | N76: 0 | O76: 500000 | P76: 0 | Q76: 0
B77: 002 | C77: 0111 | D77: 0700500 | E77: 870 | F77: 290 | J77: 500000 | K77: 500000 | L77: 0 | M77: 500000 | N77: 0 | O77: 500000 | P77: 500000 | Q77: 100
A78: Другие общегосударственные вопросы | B78: 002 | C78: 0113 | D78: 0000000 | E78: 000 | F78: 000 | J78: =J82+J94+J97+J105+J79 -> 898857 | K78: =K82+K94+K97+K105+K79 -> 893857 | L78: 0 | M78: 893857 | N78: 0 | O78: 893857 | P78: 161224.11 | Q78: 17.93656944
B79: 002 | C79: 0113 | D79: 5209900 | E79: 000 | F79: 000 | J79: =J80 -> 5000 | K79: =K80 -> 0 | L79: 0 | M79: 0 | N79: 0 | O79: 0 | P79: 5000 | Q79: 100
A80: Иные закупки товаров, работ и услуг для государственных(муниципальных) нужд | B80: 002 | C80: 0113 | D80: 5209900 | E80: 240 | F80: 000 | J80: =J81 -> 5000 | K80: 0 | L80: 0 | M80: 0 | N80: 0 | O80: 0 | P80: 5000 | Q80: 100
A81: Прочие работы, услуги | B81: 002 | C81: 0113 | D81: 5209900 | E81: 240 | F81: 226 | J81: 5000 | P81: 5000 | Q81: 100
A82: Организация деятельности административных комиссий | B82: 002 | C82: 0113 | D82: 5210204 | E82: 000 | F82: 000 | J82: =J83+J88 -> 287200 | K82: 287200 | L82: 0 | M82: 287200 | N82: 0 | O82: 287200 | P82: =P83+P88 -> 76938.65 | Q82: 26.78922354
A83: Расходы на выплаты персоналу государственных (муниципальных) органов | B83: 002 | C83: 0113 | D83: 5210204 | E83: 120 | F83: 000 | J83: =J84+J86 -> 230000 | K83: 230000 | L83: 0 | M83: 230000 | N83: 0 | O83: 230000 | P83: =P84+P86 -> 70119.6 | Q83: 30.48678261
A84: Заработная плата | B84: 002 | C84: 0113 | D84: 5210204 | E84: 120 | F84: 211 | J84: 176650 | K84: 176650 | L84: 0 | M84: 176650 | N84: 0 | O84: 176650 | P84: 56800 | Q84: 32.15397679
B85: 002 | C85: 0113 | D85: 5210204 | E85: 120 | F85: 211 | J85: 176650 | K85: 176650 | L85: 0 | M85: 176650 | N85: 0 | O85: 176650 | Q85: 0
A86: Начисления на выплаты по оплате труда | B86: 002 | C86: 0113 | D86: 5210204 | E86: 120 | F86: 213 | J86: 53350 | K86: 53350 | L86: 0 | M86: 53350 | N86: 0 | O86: 53350 | P86: 13319.6 | Q86: 24.96644799
B87: 002 | C87: 0113 | D87: 5210204 | E87: 120 | F87: 213 | J87: 53350 | K87: 53350 | L87: 0 | M87: 53350 | N87: 0 | O87: 53350 | P87: 53350 | Q87: 100
A88: Иные закупки товаров, работ и услуг для государственных(муниципальных) нужд | B88: 002 | C88: 0113 | D88: 5210204 | E88: 240 | F88: 000 | J88: =J89+J91+J92+J93 -> 57200 | K88: 57200 | L88: 0 | M88: 57200 | N88: 0 | O88: 57200 | P88: =P89+P91+P92+P93 -> 6819.05 | Q88: 11.92141608
A89: Услуги связи | B89: 002 | C89: 0113 | D89: 5210204 | E89: 240 | F89: 221 | J89: 15000 | K89: 15000 | L89: 0 | M89: 15000 | N89: 0 | O89: 15000 | P89: 6819.05 | Q89: 45.46033333
B90: 002 | C90: 0113 | D90: 5210204 | E90: 240 | F90: 221 | J90: 15000 | K90: 15000 | L90: 0 | M90: 15000 | N90: 0 | O90: 15000 | Q90: 0
A91: Прочие работы, услуги | B91: 002 | C91: 0113 | D91: 5210204 | E91: 240 | F91: 226 | J91: 10000 | K91: 10000 | L91: 0 | M91: 10000 | N91: 0 | O91: 10000 | P91: 0 | Q91: 0
A92: Увеличение стоимости основных средств | B92: 002 | C92: 0113 | D92: 5210204 | E92: 240 | F92: 310 | J92: 15000 | K92: 15000 | L92: 0 | M92: 15000 | N92: 0 | O92: 15000 | P92: 0 | Q92: 0
A93: Увеличение стоимости материальных запасов | B93: 002 | C93: 0113 | D93: 5210204 | E93: 240 | F93: 340 | J93: 17200 | K93: 17200 | L93: 0 | M93: 17200 | N93: 0 | O93: 17200 | P93: 0 | Q93: 0
A94: Долгосрочная целевая программа "Энергосбережение и повышение энергоэффективности в г. Фокино (2011-2020гг)" | B94: 002 | C94: 0113 | D94: 7951800 | E94: 000 | F94: 000 | J94: =J95 -> 250000 | K94: 250000 | L94: 0 | M94: 250000 | N94: 0 | O94: 250000 | P94: =P95 -> 0 | Q94: 0
A95: Иные закупки товаров, работ и услуг для государственных(муниципальных) нужд | B95: 002 | C95: 0113 | D95: 7951800 | E95: 240 | F95: 000 | J95: =J96 -> 250000 | K95: 250000 | L95: 0 | M95: 250000 | N95: 0 | O95: 250000 | P95: =P96 -> 0 | Q95: 0
A96: Работы, услуги по содержанию имущества | B96: 002 | C96: 0113 | D96: 7951800 | E96: 240 | F96: 225 | J96: 250000 | K96: 250000 | L96: 0 | M96: 250000 | N96: 0 | O96: 250000 | P96: 0 | Q96: 0
A97: Долгосрочнаяя целевая программа "Развитие информационного обеспечения " | B97: 002 | C97: 0113 | D97: 7952200 | E97: 000 | F97: 000 | J97: =J98 -> 120000 | K97: 120000 | L97: 0 | M97: 120000 | N97: 0 | O97: 120000 | P97: =P98 -> 79285.46 | Q97: 66.07121667
A98: Иные закупки товаров, работ и услуг для государственных(муниципальных) нужд | B98: 002 | C98: 0113 | D98: 7952200 | E98: 240 | F98: 000 | J98: =J99+J100+J101+J103 -> 120000 | K98: 120000 | L98: 0 | M98: 120000 | N98: 0 | O98: 120000 | P98: =P99+P100+P101+P103 -> 79285.46 | Q98: 66.07121667
A99: Работы, услуги по содержанию имущества | B99: 002 | C99: 0113 | D99: 7952200 | E99: 240 | F99: 225 | J99: =90000-23363-4400 -> 62237 | K99: 90000 | L99: 0 | M99: 90000 | N99: 0 | O99: 90000 | P99: 21604.46 | Q99: 34.71320918
A100: Прочие работы, услуги | B100: 002 | C100: 0113 | D100: 7952200 | E100: 240 | F100: 226 | J100: =15000+6700+4400 -> 26100 | K100: 15000 | L100: 0 | M100: 15000 | N100: 0 | O100: 15000 | P100: 26100 | Q100: 100
A101: Увеличение стоимости основных средств | B101: 002 | C101: 0113 | D101: 7952200 | E101: 240 | F101: 310 | J101: 1500 | K101: 1500 | L101: 0 | M101: 1500 | N101: 0 | O101: 1500 | P101: 1418 | Q101: 94.53333333
B102: 002 | C102: 0113 | D102: 7952200 | E102: 240 | F102: 310 | J102: 1500 | K102: 1500 | L102: 0 | M102: 1500 | N102: 0 | O102: 1500 | Q102: 0
A103: Увеличение стоимости материальных запасов | B103: 002 | C103: 0113 | D103: 7952200 | E103: 240 | F103: 340 | J103: =13500+16663 -> 30163 | K103: 13500 | L103: 0 | M103: 13500 | N103: 0 | O103: 13500 | P103: 30163 | Q103: 100
B104: 002 | C104: 0113 | D104: 7952200 | E104: 240 | F104: 340 | J104: 13500 | K104: 13500 | L104: 0 | M104: 13500 | N104: 0 | O104: 13500 | P104: 13500 | Q104: 100
A105: Возмещение морального вреда по решению суда | B105: 002 | C105: 0113 | D105: 9800000 | E105: 000 | F105: 000 | J105: =J106 -> 236657 | K105: 236657 | L105: 0 | M105: 236657 | N105: 0 | O105: 236657 | P105: =P106 -> 0 | Q105: 0
A106: Исполнение судебных актов и мировых соглашений | B106: 002 | C106: 0113 | D106: 9800000 | E106: 830 | F106: 000 | J106: =J107 -> 236657 | K106: 236657 | L106: 0 | M106: 236657 | N106: 0 | O106: 236657 | P106: =P107 -> 0 | Q106: 0
A107: Прочие расходы | B107: 002 | C107: 0113 | D107: 9800000 | E107: 830 | F107: 290 | J107: 236657 | K107: 236657 | L107: 0 | M107: 236657 | N107: 0 | O107: 236657 | P107: 0 | Q107: 0
B108: 002 | C108: 0113 | D108: 9800000 | E108: 830 | F108: 290 | J108: 236657 | K108: 236657 | L108: 0 | M108: 236657 | N108: 0 | O108: 236657 | P108: 236657 | Q108: 100
A109: НАЦИОНАЛЬНАЯ ОБОРОНА | B109: 002 | C109: 0200 | D109: 0000000 | E109: 000 | F109: 000 | J109: =J110 -> 381130 | K109: 382800 | L109: 0 | M109: 382800 | N109: 0 | O109: 382800 | P109: =P110 -> 105669.18 | Q109: 27.72523286
A110: Мобилизационная и вневойсковая подготовка | B110: 002 | C110: 0203 | D110: 0000000 | E110: 000 | F110: 000 | J110: =J111 -> 381130 | K110: 382800 | L110: 0 | M110: 382800 | N110: 0 | O110: 382800 | P110: =P111 -> 105669.18 | Q110: 27.72523286
A111: Субвенции бюджетам городских округов на осуществление отдельных государственных полномочий по первичному воинскому учету на территориях, где отсутствуют военные комиссариаты | B111: 002 | C111: 0203 | D111: 0013602 | E111: 000 | F111: 000 | J111: =J112 -> 381130 | K111: 382800 | L111: 0 | M111: 382800 | N111: 0 | O111: 382800 | P111: =P112 -> 105669.18 | Q111: 27.72523286
A112: Расходы на выплаты персоналу государственных (муниципальных) органов | B112: 002 | C112: 0203 | D112: 0013602 | E112: 120 | F112: 000 | J112: =J113+J114 -> 381130 | K112: 382800 | L112: 0 | M112: 382800 | N112: 0 | O112: 382800 | P112: =P113+P114 -> 105669.18 | Q112: 27.72523286
A113: Заработная плата | B113: 002 | C113: 0203 | D113: 0013602 | E113: 120 | F113: 211 | J113: 294000 | K113: 294000 | L113: 0 | M113: 294000 | N113: 0 | O113: 294000 | P113: 79417.74 | Q113: 27.01283673
A114: Начисления на выплаты по оплате труда | B114: 002 | C114: 0203 | D114: 0013602 | E114: 120 | F114: 213 | J114: =88800-1670 -> 87130 | K114: 88800 | L114: 0 | M114: 88800 | N114: 0 | O114: 88800 | P114: 26251.44 | Q114: 30.12904855
A115: НАЦИОНАЛЬНАЯ БЕЗОПАСНОСТЬ И ПРАВООХРАНИТЕЛЬНАЯ ДЕЯТЕЛЬНОСТЬ | B115: 002 | C115: 0300 | D115: 0000000 | E115: 000 | F115: 000 | J115: =J116 -> 92835 | K115: 92835 | L115: 0 | M115: 92835 | N115: 0 | O115: 92835 | P115: =P116 -> 92831.73 | Q115: 99.99647762
A116: Защита населения и территории от чрезвычайных ситуаций природного и техногенного характера, гражданская оборона | B116: 002 | C116: 0309 | D116: 0000000 | E116: 000 | F116: 000 | J116: =J117 -> 92835 | K116: 92835 | L116: 0 | M116: 92835 | N116: 0 | O116: 92835 | P116: =P117 -> 92831.73 | Q116: 99.99647762
A117: Органы национальной безопасности и правоохранительной деятельности | B117: 002 | C117: 0309 | D117: 2026701 | E117: 000 | F117: 000 | J117: =J118+J123 -> 92835 | K117: 92835 | L117: 0 | M117: 92835 | N117: 0 | O117: 92835 | P117: =P118+P123 -> 92831.73 | Q117: 99.99647762
A118: Расходы на выплаты персоналу государственных (муниципальных) органов | B118: 002 | C118: 0309 | D118: 2026701 | E118: 120 | F118: 000 | J118: =J119+J121 -> 44656 | K118: 44656 | L118: 0 | M118: 44656 | N118: 0 | O118: 44656 | P118: =P119+P121 -> 44654.2 | Q118: 99.99596919
A119: Заработная плата | B119: 002 | C119: 0309 | D119: 2026701 | E119: 120 | F119: 211 | J119: 32584 | K119: 32584 | L119: 0 | M119: 32584 | N119: 0 | O119: 32584 | P119: 32583.19 | Q119: 99.99751412
B120: 002 | C120: 0309 | D120: 2026701 | E120: 120 | F120: 211 | J120: 32584 | K120: 32584 | L120: 0 | M120: 32584 | N120: 0 | O120: 32584 | Q120: 0
A121: Начисления на выплаты по оплате труда | B121: 002 | C121: 0309 | D121: 2026701 | E121: 120 | F121: 213 | J121: 12072 | K121: 12072 | L121: 0 | M121: 12072 | N121: 0 | O121: 12072 | P121: 12071.01 | Q121: 99.9917992
B122: 002 | C122: 0309 | D122: 2026701 | E122: 120 | F122: 213 | J122: 12072 | K122: 12072 | L122: 0 | M122: 12072 | N122: 0 | O122: 12072 | P122: 12072 | Q122: 100
A123: Иные закупки товаров, работ и услуг для государственных(муниципальных) нужд | B123: 002 | C123: 0309 | D123: 2026701 | E123: 240 | F123: 000 | J123: =J124+J126+J128+J130 -> 48179 | K123: 48179 | L123: 0 | M123: 48179 | N123: 0 | O123: 48179 | P123: =P124+P126+P128+P130 -> 48177.53 | Q123: 99.99694888
A124: Услуги связи | B124: 002 | C124: 0309 | D124: 2026701 | E124: 240 | F124: 221 | J124: 1434 | K124: 1434 | L124: 0 | M124: 1434 | N124: 0 | O124: 1434 | P124: 1433.12 | Q124: 99.93863319
B125: 002 | C125: 0309 | D125: 2026701 | E125: 240 | F125: 221 | J125: 1434 | K125: 1434 | L125: 0 | M125: 1434 | N125: 0 | O125: 1434 | Q125: 0
A126: Работы, услуги по содержанию имущества | B126: 002 | C126: 0309 | D126: 2026701 | E126: 240 | F126: 225 | J126: =14608.87+0.13 -> 14609 | K126: 14608.87 | L126: 0 | M126: 14608.87 | N126: 0 | O126: 14608.87 | P126: 14608.87 | Q126: 99.99911014
B127: 002 | C127: 0309 | D127: 2026701 | E127: 240 | F127: 225 | J127: 14608.87 | K127: 14608.87 | L127: 0 | M127: 14608.87 | N127: 0 | O127: 14608.87 | Q127: 0
A128: Прочие работы, услуги | B128: 002 | C128: 0309 | D128: 2026701 | E128: 240 | F128: 226 | J128: =0.13-0.13 -> 0 | K128: 0.13 | L128: 0 | M128: 0.13 | N128: 0 | O128: 0.13
B129: 002 | C129: 0309 | D129: 2026701 | E129: 240 | F129: 226 | J129: 0.13 | K129: 0.13 | L129: 0 | M129: 0.13 | N129: 0 | O129: 0.13 | Q129: 0
A130: Увеличение стоимости материальных запасов | B130: 002 | C130: 0309 | D130: 2026701 | E130: 240 | F130: 340 | J130: 32136 | K130: 32136 | L130: 0 | M130: 32136 | N130: 0 | O130: 32136 | P130: 32135.54 | Q130: 99.99856858
B131: 002 | C131: 0309 | D131: 2026701 | E131: 240 | F131: 340 | J131: 32136 | K131: 32136 | L131: 0 | M131: 32136 | N131: 0 | O131: 32136 | P131: 32136 | Q131: 100
A132: НАЦИОНАЛЬНАЯ ЭКОНОМИКА | B132: 002 | C132: 0400 | D132: 0000000 | E132: 000 | F132: 000 | J132: =J133+J143+J163 -> 22202298 | K132: 18416000 | L132: 0 | M132: 18416000 | N132: 0 | O132: 18416000 | P132: =P133+P143+P163 -> 14396774.81 | Q132: 64.84362479
A133: Транспорт | B133: 002 | C133: 0408 | D133: 0000000 | E133: 000 | F133: 000 | J133: =J135+J139 -> 804000 | K133: 847000 | L133: 0 | M133: 847000 | N133: 0 | O133: 847000 | P133: =P135+P139 -> 70534 | Q133: =P133/J133*100 -> 8.772885572
B134: 002 | C134: 0408 | D134: 3170100 | E134: 810 | F134: 242 | J134: 0 | K134: 0 | L134: 0 | M134: 0 | N134: 0 | O134: 0 | P134: 0
A135: Субсидии транспортным организациям на компенсацию потерь в доходах, возникающих в результате регулирования тарифов на перевозки пассажиров за счет средств областного бюджета | B135: 002 | C135: 0408 | D135: 3170110 | E135: 000 | F135: 000 | J135: =J136 -> 592000 | K135: 592000 | L135: 0 | M135: 592000 | N135: 0 | O135: 592000 | P135: =P136 -> 49334 | Q135: 8.333445946
A136: Субсидии юридическим лицам (кроме государственных(муниципальных) учреждений), индивидуальным предпринимателям и физическим лицам - производителям товаров, работ, услуг | B136: 002 | C136: 0408 | D136: 3170110 | E136: 810 | F136: 000 | J136: =J137 -> 592000 | K136: 592000 | L136: 0 | M136: 592000 | N136: 0 | O136: 592000 | P136: =P137 -> 49334 | Q136: 8.333445946
A137: Безвозмездные перечисления организациям , за исключением государственных и муниципальных | B137: 002 | C137: 0408 | D137: 3170110 | E137: 810 | F137: 242 | J137: 592000 | K137: 592000 | L137: 0 | M137: 592000 | N137: 0 | O137: 592000 | P137: 49334 | Q137: 8.333445946
B138: 002 | C138: 0408 | D138: 3170110 | E138: 810 | F138: 242 | J138: 592000 | K138: 592000 | L138: 0 | M138: 592000 | N138: 0 | O138: 592000 | P138: 592000 | Q138: 100
A139: Субсидии транспортным организациям на компенсацию потерь в доходах, возникающих в результате регулирования тарифов на перевозки пассажиров за счет средств местного бюджета | B139: 002 | C139: 0408 | D139: 3170120 | E139: 000 | F139: 000 | J139: =J140 -> 212000 | K139: 255000 | L139: 0 | M139: 255000 | N139: 0 | O139: 255000 | P139: =P140 -> 21200 | Q139: 10
A140: Субсидии юридическим лицам (кроме государственных(муниципальных) учреждений), индивидуальным предпринимателям и физическим лицам - производителям товаров, работ, услуг | B140: 002 | C140: 0408 | D140: 3170120 | E140: 810 | F140: 000 | J140: =J141 -> 212000 | K140: 255000 | L140: 0 | M140: 255000 | N140: 0 | O140: 255000 | P140: =P141 -> 21200 | Q140: 10
A141: Безвозмездные перечисления организациям , за исключением государственных и муниципальных | B141: 002 | C141: 0408 | D141: 3170120 | E141: 810 | F141: 242 | J141: =255000-43000 -> 212000 | K141: 255000 | L141: 0 | M141: 255000 | N141: 0 | O141: 255000 | P141: 21200 | Q141: 10
B142: 002 | C142: 0408 | D142: 3170120 | E142: 810 | F142: 242 | J142: 255000 | K142: 255000 | L142: 0 | M142: 255000 | N142: 0 | O142: 255000 | P142: 255000 | Q142: 100
A143: Дорожное хозяйство (дорожные фонды) | B143: 002 | C143: 0409 | D143: 0000000 | E143: 000 | F143: 000 | J143: =J147+J151+J158+J155+J144 -> 21151798 | K143: =K147+K151+K158+K155+K144 -> 17322500 | L143: 0 | M143: 17322500 | N143: 0 | O143: 17322500 | P143: 14188081 | Q143: 67.07742292
B144: 002 | C144: 0409 | D144: 3150102 | E144: 000 | F144: 000 | J144: =J145 -> 4063900 | K144: =K145 -> 0 | L144: 0 | M144: 0 | N144: 0 | O144: 0 | P144: 0 | Q144: 0
A145: Иные закупки товаров, работ и услуг для государственных(муниципальных) нужд | B145: 002 | C145: 0409 | D145: 3150102 | E145: 240 | F145: 000 | J145: =J146 -> 4063900 | K145: 0 | L145: 0 | M145: 0 | N145: 0 | O145: 0 | P145: 0 | Q145: 0
A146: Работы, услуги по содержанию имущества | B146: 002 | C146: 0409 | D146: 3150102 | E146: 240 | F146: 225 | J146: 4063900 | P146: 0 | Q146: 0
A147: Содержание автомобильных дорог общего пользования местного значения за счет средств областного бюджета | B147: 002 | C147: 0409 | D147: 3150110 | E147: 000 | F147: 000 | J147: =J148 -> 10327800 | K147: 10327800 | L147: 0 | M147: 10327800 | N147: 0 | O147: 10327800 | P147: =P148 -> 10327800 | Q147: 100
A148: Иные закупки товаров, работ и услуг для государственных(муниципальных) нужд | B148: 002 | C148: 0409 | D148: 3150110 | E148: 240 | F148: 000 | J148: =J149 -> 10327800 | K148: 10327800 | L148: 0 | M148: 10327800 | N148: 0 | O148: 10327800 | P148: =P149 -> 10327800 | Q148: 100
A149: Работы, услуги по содержанию имущества | B149: 002 | C149: 0409 | D149: 3150110 | E149: 240 | F149: 225 | J149: 10327800 | K149: 10327800 | L149: 0 | M149: 10327800 | N149: 0 | O149: 10327800 | P149: 10327800 | Q149: 100
B150: 002 | C150: 0409 | D150: 3150110 | E150: 240 | F150: 225 | J150: 10327800 | K150: 10327800 | L150: 0 | M150: 10327800 | N150: 0 | O150: 10327800 | P150: 10327800 | Q150: 100
A151: Ремонт автомобильных дорог общего пользования местного значения за счет средств областного бюджета | B151: 002 | C151: 0409 | D151: 3150120 | E151: 000 | F151: 000 | J151: =J152 -> 2164700 | K151: 2164700 | L151: 0 | M151: 2164700 | N151: 0 | O151: 2164700 | P151: =P152 -> 2164700 | Q151: 100
A152: Иные закупки товаров, работ и услуг для государственных(муниципальных) нужд | B152: 002 | C152: 0409 | D152: 3150120 | E152: 240 | F152: 000 | J152: =J153 -> 2164700 | K152: 2164700 | L152: 0 | M152: 2164700 | N152: 0 | O152: 2164700 | P152: =P153 -> 2164700 | Q152: 100
A153: Работы, услуги по содержанию имущества | B153: 002 | C153: 0409 | D153: 3150120 | E153: 240 | F153: 225 | J153: 2164700 | K153: 2164700 | L153: 0 | M153: 2164700 | N153: 0 | O153: 2164700 | P153: 2164700 | Q153: 100
B154: 002 | C154: 0409 | D154: 3150120 | E154: 240 | F154: 225 | J154: 2164700 | K154: 2164700 | L154: 0 | M154: 2164700 | N154: 0 | O154: 2164700 | P154: 2164700 | Q154: 100
A155: Мероприятия по реализации Федерального закона от 9 февраля 2007 года N 16-ФЗ "О транспортно йбезопасности" в сфере дорожного хозяйства | B155: 002 | C155: 0409 | D155: 3150302 | E155: 000 | F155: 000 | J155: =J156 -> 68052 | K155: =K156 -> 0 | L155: 0 | M155: 0 | N155: 0 | O155: 0 | P155: 68052 | Q155: 100
A156: Иные закупки товаров, работ и услуг для государственных (муниципальных) нужд | B156: 002 | C156: 0409 | D156: 3150302 | E156: 240 | F156: 000 | J156: =J157 -> 68052 | K156: 0 | L156: 0 | M156: 0 | N156: 0 | O156: 0 | P156: 68052 | Q156: 100
A157: Прочие работы, услуги | B157: 002 | C157: 0409 | D157: 3150302 | E157: 240 | F157: 226 | J157: 68052 | P157: 68052 | Q157: 100
A158: Содерж автомобильных дорог и инженерных сооружений на них в границах городских округов в рамках благоустройства | B158: 002 | C158: 0409 | D158: 6000200 | E158: 000 | F158: 000 | J158: =J159 -> 4527346 | K158: 4830000 | L158: 0 | M158: 4830000 | N158: 0 | O158: 4830000 | P158: =P159 -> 1627529 | Q158: 35.94885392
A159: Иные закупки товаров, работ и услуг для государственных(муниципальных) нужд | B159: 002 | C159: 0409 | D159: 6000200 | E159: 240 | F159: 000 | J159: =J160+J162 -> 4527346 | K159: =K160+K162 -> 4830000 | L159: 0 | M159: 4830000 | N159: 0 | O159: 4830000 | P159: 1627529 | Q159: 35.94885392
A160: Работы, услуги по содержанию имущества | B160: 002 | C160: 0409 | D160: 6000200 | E160: 240 | F160: 225 | J160: =4830000-304754 -> 4525246 | K160: 4830000 | L160: 0 | M160: 4830000 | N160: 0 | O160: 4830000 | P160: 1625429 | Q160: 35.91913014
B161: 002 | C161: 0409 | D161: 6000200 | E161: 240 | F161: 225 | J161: 4830000 | K161: 4830000 | L161: 0 | M161: 4830000 | N161: 0 | O161: 4830000 | Q161: 0
A162: Увеличение стоимости материальных запасов | B162: 002 | C162: 0409 | D162: 6000200 | E162: 240 | F162: 340 | J162: 2100 | P162: 2100 | Q162: 100
A163: Другие вопросы в области национальной экономики | B163: 002 | C163: 0412 | D163: 0000000 | E163: 000 | F163: 000 | J163: =J164+J170+J174 -> 246500 | K163: 246500 | L163: 0 | M163: 246500 | N163: 0 | O163: 246500 | P163: =P164+P170+P174 -> 138159.81 | Q163: 56.04860446
A164: Осуществление отдельных государственных полномочий Брянской области в области охраны труда | B164: 002 | C164: 0412 | D164: 5210222 | E164: 000 | F164: 000 | J164: =J165 -> 143500 | K164: 143500 | L164: 0 | M164: 143500 | N164: 0 | O164: 143500 | P164: =P165 -> 38159.81 | Q164: 26.59220209
A165: Расходы на выплаты персоналу государственных (муниципальных) органов | B165: 002 | C165: 0412 | D165: 5210222 | E165: 120 | F165: 000 | J165: =J166+J168 -> 143500 | K165: 143500 | L165: 0 | M165: 143500 | N165: 0 | O165: 143500 | P165: =P166+P168 -> 38159.81 | Q165: 26.59220209
A166: Заработная плата | B166: 002 | C166: 0412 | D166: 5210222 | E166: 120 | F166: 211 | J166: 110215 | K166: 110215 | L166: 0 | M166: 110215 | N166: 0 | O166: 110215 | P166: 29084.82 | Q166: 26.38916663
B167: 002 | C167: 0412 | D167: 5210222 | E167: 120 | F167: 211 | J167: 110215 | K167: 110215 | L167: 0 | M167: 110215 | N167: 0 | O167: 110215 | Q167: 0
A168: Начисления на выплаты по оплате труда | B168: 002 | C168: 0412 | D168: 5210222 | E168: 120 | F168: 213 | J168: 33285 | K168: 33285 | L168: 0 | M168: 33285 | N168: 0 | O168: 33285 | P168: 9074.99 | Q168: 27.26450353
B169: 002 | C169: 0412 | D169: 5210222 | E169: 120 | F169: 213 | J169: 33285 | K169: 33285 | L169: 0 | M169: 33285 | N169: 0 | O169: 33285 | P169: 33285 | Q169: 100
A170: ДЦП "Поддержка малого и среднего предпринимательства в городе Фокино на 2012-2014гг" | B170: 002 | C170: 0412 | D170: 7951900 | E170: 000 | F170: 000 | J170: =J171 -> 3000 | K170: 3000 | L170: 0 | M170: 3000 | N170: 0 | O170: 3000 | P170: =P171 -> 0 | Q170: 0
A171: Иные закупки товаров, работ и услуг для государственных(муниципальных) нужд | B171: 002 | C171: 0412 | D171: 7951900 | E171: 240 | F171: 000 | J171: =J172 -> 3000 | K171: 3000 | L171: 0 | M171: 3000 | N171: 0 | O171: 3000 | P171: =P172 -> 0 | Q171: 0
A172: Увеличение стоимости материальных запасов | B172: 002 | C172: 0412 | D172: 7951900 | E172: 240 | F172: 340 | J172: 3000 | K172: 3000 | L172: 0 | M172: 3000 | N172: 0 | O172: 3000 | P172: 0 | Q172: 0
B173: 002 | C173: 0412 | D173: 7951900 | E173: 240 | F173: 340 | J173: 3000 | K173: 3000 | L173: 0 | M173: 3000 | N173: 0 | O173: 3000 | P173: 3000 | Q173: 100
A174: Долгосрочная целевая программа "Реформирование земельных, имущественных отношений и градостроительства ( 2012-2014 гг)" | B174: 002 | C174: 0412 | D174: 7952300 | E174: 000 | F174: 000 | J174: =J175 -> 100000 | K174: 100000 | L174: 0 | M174: 100000 | N174: 0 | O174: 100000 | P174: =P175 -> 100000 | Q174: 100
A175: Иные закупки товаров, работ и услуг для государственных(муниципальных) нужд | B175: 002 | C175: 0412 | D175: 7952300 | E175: 240 | F175: 000 | J175: =J176 -> 100000 | K175: 100000 | L175: 0 | M175: 100000 | N175: 0 | O175: 100000 | P175: =P176 -> 100000 | Q175: 100
A176: Прочие работы, услуги | B176: 002 | C176: 0412 | D176: 7952300 | E176: 240 | F176: 226 | J176: 100000 | K176: 100000 | L176: 0 | M176: 100000 | N176: 0 | O176: 100000 | P176: 100000 | Q176: 100
B177: 002 | C177: 0412 | D177: 7952300 | E177: 240 | F177: 226 | J177: 100000 | K177: 100000 | L177: 0 | M177: 100000 | N177: 0 | O177: 100000 | P177: 100000 | Q177: 100
A178: ЖИЛИЩНО-КОММУНАЛЬНОЕ ХОЗЯЙСТВО | B178: 002 | C178: 0500 | D178: 0000000 | E178: 000 | F178: 000 | J178: =J179+J197 -> 4036360.95 | K178: 3489800 | L178: 0 | M178: 3489800 | N178: 0 | O178: 3489800 | P178: =P179+P197 -> 1535954.62 | Q178: 38.0529551
A179: Коммунальное хозяйство | B179: 002 | C179: 0502 | D179: 0000000 | E179: 000 | F179: 000 | J179: =J180+J187+J193 -> 1616560.95 | K179: 1070000 | L179: 0 | M179: 1070000 | N179: 0 | O179: 1070000 | P179: =P180+P187+P193 -> 652747 | Q179: 40.37874353
A180: Мероприятия в области коммунального хозяйства | B180: 002 | C180: 0502 | D180: 3510500 | E180: 000 | F180: 000 | J180: =J184+J181 -> 1346560.95 | K180: =K184+K181 -> 800000 | L180: 0 | M180: 800000 | N180: 0 | O180: 800000 | P180: 649747 | Q180: 48.25232753
A181: Иные закупки товаров, работ и услуг для государственных(муниципальных) нужд | B181: 002 | C181: 0502 | D181: 3510500 | E181: 240 | F181: 000 | J181: =J182+J183 -> 297654 | K181: =K182+K183 -> 0 | L181: 0 | M181: 0 | N181: 0 | O181: 0 | P181: 201000 | Q181: 67.5280695
A182: Работы, услуги по содержанию имущества | B182: 002 | C182: 0502 | D182: 3510500 | E182: 240 | F182: 225 | J182: 296654 | P182: 200000 | Q182: 67.41860888
A183: Прочие работы, услуги | B183: 002 | C183: 0502 | D183: 3510500 | E183: 240 | F183: 226 | J183: 1000 | P183: 1000 | Q183: 100
A184: Субсидии юридическим лицам (кроме государственных(муниципальных) учреждений), индивидуальным предпринимателям и физическим лицам - производителям товаров, работ, услуг | B184: 002 | C184: 0502 | D184: 3510500 | E184: 810 | F184: 000 | J184: =J185 -> 1048906.95 | K184: 800000 | L184: 0 | M184: 800000 | N184: 0 | O184: 800000 | P184: =P185 -> 448747 | Q184: 42.78234595
A185: Безвозмездные перечисления государственным и муниципальным организациям | B185: 002 | C185: 0502 | D185: 3510500 | E185: 810 | F185: 241 | J185: =800000+248906.95 -> 1048906.95 | K185: 800000 | L185: 0 | M185: 800000 | N185: 0 | O185: 800000 | P185: 448747 | Q185: 42.78234595
B186: 002 | C186: 0502 | D186: 3510500 | E186: 810 | F186: 241 | J186: 800000 | K186: 800000 | L186: 0 | M186: 800000 | N186: 0 | O186: 800000 | P186: 800000 | Q186: 100
A187: Долгосрочная целевая программа "Энергосбережение и повышение энергоэффективности в г. Фокино (2011-2020гг)" | B187: 002 | C187: 0502 | D187: 7951800 | E187: 000 | F187: 000 | J187: =J188 -> 250000 | K187: 250000 | L187: 0 | M187: 250000 | N187: 0 | O187: 250000 | P187: =P188 -> 3000 | Q187: 1.2
A188: Бюджетные инвестиции в объекты муниципальной собственности | B188: 002 | C188: 0502 | D188: 7951800 | E188: 411 | F188: 000 | J188: =J189+J191 -> 250000 | K188: 250000 | L188: 0 | M188: 250000 | N188: 0 | O188: 250000 | P188: =P189+P191 -> 3000 | Q188: 1.2
A189: Прочие работы, услуги | B189: 002 | C189: 0502 | D189: 7951800 | E189: 411 | F189: 226 | J189: 3000 | K189: 3000 | L189: 0 | M189: 3000 | N189: 0 | O189: 3000 | P189: 3000 | Q189: 100
B190: 002 | C190: 0502 | D190: 7951800 | E190: 411 | F190: 226 | J190: 3000 | K190: 3000 | L190: 0 | M190: 3000 | N190: 0 | O190: 3000 | Q190: 0
A191: Увеличение стоимости основных средств | B191: 002 | C191: 0502 | D191: 7951800 | E191: 411 | F191: 310 | J191: 247000 | K191: 247000 | L191: 0 | M191: 247000 | N191: 0 | O191: 247000 | P191: 0 | Q191: 0
B192: 002 | C192: 0502 | D192: 7951800 | E192: 411 | F192: 310 | J192: 247000 | K192: 247000 | L192: 0 | M192: 247000 | N192: 0 | O192: 247000 | P192: 247000 | Q192: 100
A193: Долгосрочная целевая программа "Инженерное обустройство населенных пунктов Брянской области" (2009-2015 годы),Подпрограмма "Газификация Брянской области" (2009-2015 годы) | B193: 002 | C193: 0502 | D193: 9220301 | E193: 000 | F193: 000 | J193: =J194 -> 20000 | K193: 20000 | L193: 0 | M193: 20000 | N193: 0 | O193: 20000 | P193: =P194 -> 0 | Q193: 0
A194: Иные закупки товаров, работ и услуг для государственных(муниципальных) нужд | B194: 002 | C194: 0502 | D194: 9220301 | E194: 240 | F194: 000 | J194: =J195 -> 20000 | K194: 20000 | L194: 0 | M194: 20000 | N194: 0 | O194: 20000 | P194: =P195 -> 0 | Q194: 0
A195: Увеличение стоимости основных средств | B195: 002 | C195: 0502 | D195: 9220301 | E195: 240 | F195: 310 | J195: 20000 | K195: 20000 | L195: 0 | M195: 20000 | N195: 0 | O195: 20000 | P195: 0 | Q195: 0
B196: 002 | C196: 0502 | D196: 9220301 | E196: 240 | F196: 310 | J196: 20000 | K196: 20000 | L196: 0 | M196: 20000 | N196: 0 | O196: 20000 | P196: 20000 | Q196: 100
A197: Благоустройство | B197: 002 | C197: 0503 | D197: 0000000 | E197: 000 | F197: 000 | J197: =J198+J206+J210 -> 2419800 | K197: 2419800 | L197: 0 | M197: 2419800 | N197: 0 | O197: 2419800 | P197: =P198+P206+P210 -> 883207.62 | Q197: =P197/J197*100 -> 36.49919911
A198: Уличное освещение | B198: 002 | C198: 0503 | D198: 6000100 | E198: 000 | F198: 000 | J198: =J199 -> 1105000 | K198: 1105000 | L198: 0 | M198: 1105000 | N198: 0 | O198: 1105000 | P198: =P199 -> 534275.62 | Q198: 48.35073484
A199: Иные закупки товаров, работ и услуг для государственных(муниципальных) нужд | B199: 002 | C199: 0503 | D199: 6000100 | E199: 240 | F199: 000 | J199: =J200+J202+J204 -> 1105000 | K199: 1105000 | L199: 0 | M199: 1105000 | N199: 0 | O199: 1105000 | P199: =P200+P202+P204 -> 534275.62 | Q199: 48.35073484
A200: Коммунальные услуги | B200: 002 | C200: 0503 | D200: 6000100 | E200: 240 | F200: 223 | J200: 1059035 | K200: 1060000 | L200: 0 | M200: 1060000 | N200: 0 | O200: 1060000 | P200: 524439.8 | Q200: 49.5205352
... 343 more rows
